[Event "FIDE World Rapid Chess Championship 2021"]
[White "Teclaf, Pawel"]
[Black "Oparin, Grigoriy"]
[WhiteFideId "1185934"]
[BlackFideId "24125890"]
[WhiteElo "2345"]
[BlackElo "2725"]
[Result "1/2-1/2"]
[Round "08"]
[TimeControl "900+10"]
[Date "2021.12.27"]
[WhiteClock "0:00:33"]
[BlackClock "0:00:35"]

1. e4 {[%clk 0:15:00]}  e5 {[%clk 0:15:00]} 2. Nf3 {[%clk 0:15:00]}  Nc6 {[%clk 0:15:00]} 3. Nc3 {[%clk 0:15:00]}  Nf6 {[%clk 0:14:11]} 4. d4 {[%clk 0:16:08]}  exd4 {[%clk 0:14:11]} 5. Nxd4 {[%clk 0:16:08]}  Bc5 {[%clk 0:14:11]} 6. Be3 {[%clk 0:16:08]}  Bxd4 {[%clk 0:14:11]} 7. Bxd4 {[%clk 0:16:08]}  O-O {[%clk 0:14:11]} 8. Bc4 {[%clk 0:16:08]}  d6 {[%clk 0:14:11]} 9. O-O {[%clk 0:12:10]}  Be6 {[%clk 0:14:11]} 10. Bb3 {[%clk 0:12:10]}  Nd7 {[%clk 0:14:11]} 11. Be3 {[%clk 0:11:23]}  Re8 {[%clk 0:13:10]} 12. Qd2 {[%clk 0:11:23]}  Na5 {[%clk 0:13:10]} 13. Rad1 {[%clk 0:10:04]}  Nxb3 {[%clk 0:12:31]} 14. axb3 {[%clk 0:10:04]}  f6 {[%clk 0:12:31]} 15. Rfe1 {[%clk 0:10:04]}  Bf7 {[%clk 0:12:31]} 16. f3 {[%clk 0:10:04]}  Ne5 {[%clk 0:12:31]} 17. Ne2 {[%clk 0:08:45]}  a5 {[%clk 0:11:53]} 18. Bd4 {[%clk 0:08:45]}  Qd7 {[%clk 0:11:53]} 19. Nc3 {[%clk 0:08:45]}  b5 {[%clk 0:11:15]} 20. Bf2 {[%clk 0:07:13]}  a4 {[%clk 0:11:15]} 21. bxa4 {[%clk 0:07:13]}  bxa4 {[%clk 0:11:15]} 22. Nd5 {[%clk 0:07:13]}  Qc6 {[%clk 0:10:45]} 23. Nb4 {[%clk 0:05:58]}  Qc4 {[%clk 0:09:19]} 24. Nd3 {[%clk 0:05:58]}  Reb8 {[%clk 0:09:19]} 25. Ra1 {[%clk 0:05:58]}  h6 {[%clk 0:08:45]} 26. Rec1 {[%clk 0:02:35]}  Qb5 {[%clk 0:03:38]} 27. Bd4 {[%clk 0:01:51]}  Bc4 {[%clk 0:03:38]} 28. Ra3 {[%clk 0:01:51]}  Qb7 {[%clk 0:03:38]} 29. Qf2 {[%clk 0:01:51]}  Bxd3 {[%clk 0:02:57]} 30. cxd3 {[%clk 0:00:40]}  c5 {[%clk 0:02:57]} 31. Bxe5 {[%clk 0:00:40]}  fxe5 {[%clk 0:02:57]} 32. Rc2 {[%clk 0:00:40]}  Qd7 {[%clk 0:02:57]} 33. Rc4 {[%clk 0:00:40]}  Rb4 {[%clk 0:02:57]} 34. h3 {[%clk 0:00:40]}  Rab8 {[%clk 0:02:03]} 35. Ra2 {[%clk 0:00:13]}  Qb5 {[%clk 0:02:03]} 36. Qf1 {[%clk 0:00:13]}  Rxb2 {[%clk 0:02:03]} 37. Rxb2 {[%clk 0:00:13]}  Qxb2 {[%clk 0:02:03]} 38. Rxa4 {[%clk 0:00:13]}  Rb3 {[%clk 0:02:03]} 39. f4 {[%clk 0:00:14]}  Qc2 {[%clk 0:00:19]} 40. Ra8+ {[%clk 0:00:14]}  Kh7 {[%clk 0:00:19]} 41. Kh2 {[%clk 0:00:14]}  Qxd3 {[%clk 0:00:19]} 42. Qxd3 {[%clk 0:00:14]}  Rxd3 {[%clk 0:00:19]} 43. fxe5 {[%clk 0:00:14]}  dxe5 {[%clk 0:00:19]} 44. Re8 {[%clk 0:00:14]}  Rd7 {[%clk 0:00:19]} 45. Rc8 {[%clk 0:00:14]}  Rd4 {[%clk 0:00:19]} 46. Rxc5 {[%clk 0:00:14]}  Rxe4 {[%clk 0:00:19]} 47. Kg3 {[%clk 0:00:14]}  Kg6 {[%clk 0:00:19]} 48. Kf3 {[%clk 0:00:14]}  Rf4+ {[%clk 0:00:19]} 49. Ke3 {[%clk 0:00:14]}  Kf6 {[%clk 0:00:35]} 50. Rc6+ {[%clk 0:00:33]}  Kf5 {[%clk 0:00:35]} 51. Rc7 {[%clk 0:00:33]}  g6 {[%clk 0:00:35]} 52. Rh7 {[%clk 0:00:33]}  h5 {[%clk 0:00:35]} 53. Rf7+ {[%clk 0:00:33]}  Kg5 {[%clk 0:00:35]} 54. Rxf4 {[%clk 0:00:33]}  exf4+ {[%clk 0:00:35]} 55. Ke4 {[%clk 0:00:33]} 1/2-1/2


[Site "http://www.Chess.com"]

[Event "FIDE World Rapid Chess Championship 2021"]
[White "Janik, Igor"]
[Black "Kovalev, Vladislav"]
[WhiteFideId "1159259"]
[BlackFideId "13504398"]
[WhiteElo "2462"]
[BlackElo "2647"]
[Result "1/2-1/2"]
[Round "08"]
[TimeControl "900+10"]
[Date "2021.12.27"]
[WhiteClock "0:02:31"]
[BlackClock "0:00:17"]

1. d4 {[%clk 0:15:00]}  Nf6 {[%clk 0:15:00]} 2. c4 {[%clk 0:15:00]}  e6 {[%clk 0:15:00]} 3. Nf3 {[%clk 0:15:00]}  Bb4+ {[%clk 0:15:00]} 4. Nbd2 {[%clk 0:15:00]}  O-O {[%clk 0:15:00]} 5. g3 {[%clk 0:15:00]}  d5 {[%clk 0:13:37]} 6. Bg2 {[%clk 0:15:53]}  dxc4 {[%clk 0:13:37]} 7. Qc2 {[%clk 0:15:53]}  c5 {[%clk 0:13:37]} 8. dxc5 {[%clk 0:15:53]}  c3 {[%clk 0:13:37]} 9. bxc3 {[%clk 0:15:53]}  Bxc5 {[%clk 0:13:37]} 10. Nb3 {[%clk 0:15:53]}  Bd6 {[%clk 0:13:37]} 11. O-O {[%clk 0:15:53]}  Qe7 {[%clk 0:13:37]} 12. c4 {[%clk 0:15:53]}  Nc6 {[%clk 0:11:52]} 13. c5 {[%clk 0:15:49]}  Bc7 {[%clk 0:11:52]} 14. Rd1 {[%clk 0:15:49]}  e5 {[%clk 0:11:52]} 15. Bb2 {[%clk 0:14:48]}  h6 {[%clk 0:10:57]} 16. Nfd2 {[%clk 0:14:48]}  Rd8 {[%clk 0:11:00]} 17. Nc4 {[%clk 0:12:57]}  Be6 {[%clk 0:11:00]} 18. Ba3 {[%clk 0:12:57]}  Ne8 {[%clk 0:08:01]} 19. e4 {[%clk 0:12:54]}  Rxd1+ {[%clk 0:05:22]} 20. Rxd1 {[%clk 0:12:54]}  Rd8 {[%clk 0:05:22]} 21. Ne3 {[%clk 0:12:54]}  Rxd1+ {[%clk 0:05:22]} 22. Qxd1 {[%clk 0:12:54]}  Qd7 {[%clk 0:05:22]} 23. Nd5 {[%clk 0:11:55]}  Bd8 {[%clk 0:04:59]} 24. Nd2 {[%clk 0:08:15]}  b5 {[%clk 0:05:07]} 25. cxb6 {[%clk 0:08:15]}  Bxb6 {[%clk 0:03:32]} 26. Qa4 {[%clk 0:07:26]}  Kh7 {[%clk 0:03:32]} 27. Nc4 {[%clk 0:07:10]}  Bd4 {[%clk 0:02:41]} 28. Qb5 {[%clk 0:07:10]}  Nf6 {[%clk 0:02:49]} 29. Bb2 {[%clk 0:03:22]}  Bxb2 {[%clk 0:00:59]} 30. Nxb2 {[%clk 0:03:22]}  Nd4 {[%clk 0:00:59]} 31. Qxd7 {[%clk 0:03:22]}  Nxd7 {[%clk 0:00:59]} 32. Nd3 {[%clk 0:03:22]}  f6 {[%clk 0:00:59]} 33. f4 {[%clk 0:03:22]}  Kg8 {[%clk 0:00:17]} 34. Kf2 {[%clk 0:01:39]}  exf4 {[%clk 0:00:17]} 35. N3xf4 {[%clk 0:01:39]}  Bf7 {[%clk 0:00:17]} 36. Ke3 {[%clk 0:01:39]}  Nc6 {[%clk 0:00:17]} 37. Nd3 {[%clk 0:01:39]}  Kf8 {[%clk 0:00:17]} 38. a3 {[%clk 0:01:39]}  Ke8 {[%clk 0:00:17]} 39. h4 {[%clk 0:01:39]}  Nb6 {[%clk 0:00:17]} 40. Nc5 {[%clk 0:01:39]}  Nc4+ {[%clk 0:00:17]} 41. Kd3 {[%clk 0:01:39]}  Nxa3 {[%clk 0:00:17]} 42. Bh3 {[%clk 0:01:39]}  Ne5+ {[%clk 0:00:17]} 43. Kc3 {[%clk 0:01:39]}  Nb5+ {[%clk 0:00:17]} 44. Kb4 {[%clk 0:01:39]}  Nd6 {[%clk 0:00:17]} 45. Nc7+ {[%clk 0:01:39]}  Ke7 {[%clk 0:01:01]} 46. Nd5+ {[%clk 0:02:01]}  Kf8 {[%clk 0:01:01]} 47. Nc7 {[%clk 0:02:01]}  h5 {[%clk 0:01:01]} 48. Be6 {[%clk 0:02:01]}  Nc6+ {[%clk 0:01:01]} 49. Kc3 {[%clk 0:02:01]}  Bxe6 {[%clk 0:01:01]} 50. N7xe6+ {[%clk 0:02:01]}  Kf7 {[%clk 0:01:01]} 51. Nf4 {[%clk 0:02:01]}  g6 {[%clk 0:01:01]} 52. Nd5 {[%clk 0:01:26]}  Ne7 {[%clk 0:00:27]} 53. Kd4 {[%clk 0:01:26]}  Nxd5 {[%clk 0:00:27]} 54. Kxd5 {[%clk 0:01:26]}  Ke7 {[%clk 0:00:27]} 55. e5 {[%clk 0:01:26]}  fxe5 {[%clk 0:00:27]} 56. Kxe5 {[%clk 0:01:26]}  Nf5 {[%clk 0:00:27]} 57. Kf4 {[%clk 0:01:26]}  Kf6 {[%clk 0:00:27]} 58. g4 {[%clk 0:01:26]}  Nxh4 {[%clk 0:00:27]} 59. Ne4+ {[%clk 0:01:26]}  Ke6 {[%clk 0:00:27]} 60. gxh5 {[%clk 0:01:26]}  gxh5 {[%clk 0:00:27]} 61. Kg5 {[%clk 0:01:26]}  Ke5 {[%clk 0:00:27]} 62. Nc5 {[%clk 0:01:26]}  Kd5 {[%clk 0:00:27]} 63. Na6 {[%clk 0:01:26]}  Nf3+ {[%clk 0:00:27]} 64. Kxh5 {[%clk 0:01:26]}  Ne5 {[%clk 0:00:17]} 65. Kg5 {[%clk 0:02:31]}  Nd3 {[%clk 0:00:17]} 66. Kf5 {[%clk 0:02:31]}  Nc5 {[%clk 0:00:17]} 67. Nb4+ {[%clk 0:02:31]}  Kd6 {[%clk 0:00:17]} 68. Kf4 {[%clk 0:02:31]}  a5 {[%clk 0:00:17]} 69. Nc2 {[%clk 0:02:31]}  Kd5 {[%clk 0:00:17]} 70. Ke3 {[%clk 0:02:31]}  Kc4 {[%clk 0:00:17]} 71. Kd2 {[%clk 0:02:31]}  Nb3+ {[%clk 0:00:17]} 72. Kd1 {[%clk 0:02:31]}  Kc3 {[%clk 0:00:17]} 73. Ne3 {[%clk 0:02:31]}  a4 {[%clk 0:00:17]} 74. Nd5+ {[%clk 0:02:31]}  Kd4 {[%clk 0:00:17]} 1/2-1/2


[Site "http://www.Chess.com"]

[Event "FIDE World Rapid Chess Championship 2021"]
[White "Sychev, Klementy"]
[Black "Antipov, Mikhail Al."]
[WhiteFideId "4114060"]
[BlackFideId "4107012"]
[WhiteElo "2461"]
[BlackElo "2644"]
[Result "1-0"]
[Round "08"]
[TimeControl "900+10"]
[Date "2021.12.27"]
[WhiteClock "0:00:26"]
[BlackClock "0:00:19"]

1. c4 {[%clk 0:15:00]}  g6 {[%clk 0:15:00]} 2. Nc3 {[%clk 0:13:53]}  Bg7 {[%clk 0:15:08]} 3. d4 {[%clk 0:13:53]}  c5 {[%clk 0:15:08]} 4. e3 {[%clk 0:13:53]}  d6 {[%clk 0:15:08]} 5. Nf3 {[%clk 0:13:53]}  Nf6 {[%clk 0:15:08]} 6. d5 {[%clk 0:13:53]}  O-O {[%clk 0:15:08]} 7. Be2 {[%clk 0:13:53]}  e5 {[%clk 0:15:08]} 8. e4 {[%clk 0:13:53]}  Nh5 {[%clk 0:12:27]} 9. g3 {[%clk 0:13:55]}  Nd7 {[%clk 0:12:08]} 10. Bg5 {[%clk 0:12:37]}  Bf6 {[%clk 0:10:03]} 11. Be3 {[%clk 0:10:50]}  Be7 {[%clk 0:10:03]} 12. Nd2 {[%clk 0:10:55]}  Ndf6 {[%clk 0:08:23]} 13. h3 {[%clk 0:10:55]}  Ng7 {[%clk 0:08:23]} 14. g4 {[%clk 0:08:49]}  Nfe8 {[%clk 0:07:33]} 15. Nf3 {[%clk 0:07:42]}  a6 {[%clk 0:07:33]} 16. Rg1 {[%clk 0:07:42]}  Rb8 {[%clk 0:04:05]} 17. a4 {[%clk 0:06:46]}  b6 {[%clk 0:04:05]} 18. Qd2 {[%clk 0:06:46]}  Bd7 {[%clk 0:04:05]} 19. h4 {[%clk 0:06:46]}  Nf6 {[%clk 0:04:05]} 20. Nh2 {[%clk 0:06:46]}  h5 {[%clk 0:04:05]} 21. g5 {[%clk 0:06:46]}  Nh7 {[%clk 0:03:47]} 22. f4 {[%clk 0:05:49]}  exf4 {[%clk 0:03:47]} 23. Bxf4 {[%clk 0:05:49]}  f6 {[%clk 0:03:47]} 24. gxf6 {[%clk 0:05:49]}  Bxf6 {[%clk 0:03:47]} 25. Rxg6 {[%clk 0:05:31]}  Be8 {[%clk 0:03:35]} 26. Rg2 {[%clk 0:05:31]}  Bxh4+ {[%clk 0:03:35]} 27. Kd1 {[%clk 0:05:31]}  Bf6 {[%clk 0:03:35]} 28. Kc2 {[%clk 0:05:31]}  Rb7 {[%clk 0:02:21]} 29. Rag1 {[%clk 0:03:45]}  Bd4 {[%clk 0:02:21]} 30. Be3 {[%clk 0:03:45]}  Qf6 {[%clk 0:02:21]} 31. Nf3 {[%clk 0:03:45]}  Bxe3 {[%clk 0:02:21]} 32. Qxe3 {[%clk 0:03:45]}  Kh8 {[%clk 0:02:21]} 33. Rf1 {[%clk 0:03:21]}  Re7 {[%clk 0:01:28]} 34. Bd3 {[%clk 0:01:17]}  Qf4 {[%clk 0:00:55]} 35. Qe1 {[%clk 0:01:17]}  Nf5 {[%clk 0:00:55]} 36. Nd1 {[%clk 0:01:17]}  Qxf3 {[%clk 0:00:55]} 37. Rxf3 {[%clk 0:01:17]}  Nd4+ {[%clk 0:00:55]} 38. Kb1 {[%clk 0:01:17]}  Rxf3 {[%clk 0:00:55]} 39. Qh4 {[%clk 0:01:17]}  Re5 {[%clk 0:00:19]} 40. Nf2 {[%clk 0:00:26]}  Nf6 {[%clk 0:00:19]} 41. a5 {[%clk 0:00:26]}  bxa5 {[%clk 0:00:19]} 42. Qh2 {[%clk 0:00:26]}  Kh7 {[%clk 0:00:19]} 43. Rg3 {[%clk 0:00:26]}  Bg6 {[%clk 0:00:19]} 44. Rxf3 {[%clk 0:00:26]}  Nxf3 {[%clk 0:00:19]} 45. Qf4 {[%clk 0:00:26]}  Nxe4 {[%clk 0:00:19]} 46. Nxe4 {[%clk 0:00:26]} 1-0


[Site "http://www.Chess.com"]

[Event "FIDE World Rapid Chess Championship 2021"]
[White "Adly, Ahmed"]
[Black "Faizrakhmanov, Ramil"]
[WhiteFideId "10601619"]
[BlackFideId "24103209"]
[WhiteElo "2597"]
[BlackElo "2461"]
[Result "1-0"]
[Round "08"]
[TimeControl "900+10"]
[Date "2021.12.27"]
[WhiteClock "0:01:47"]
[BlackClock "0:00:50"]

1. d4 {[%clk 0:15:13]}  Nf6 {[%clk 0:14:37]} 2. Nf3 {[%clk 0:15:13]}  e6 {[%clk 0:14:37]} 3. g3 {[%clk 0:15:13]}  b5 {[%clk 0:14:37]} 4. Bg2 {[%clk 0:15:13]}  Bb7 {[%clk 0:14:37]} 5. O-O {[%clk 0:15:13]}  d5 {[%clk 0:14:37]} 6. a4 {[%clk 0:15:13]}  b4 {[%clk 0:14:37]} 7. Ne5 {[%clk 0:15:13]}  Nbd7 {[%clk 0:14:37]} 8. c4 {[%clk 0:15:13]}  bxc3 {[%clk 0:14:37]} 9. Nxc3 {[%clk 0:15:13]}  Nxe5 {[%clk 0:14:37]} 10. dxe5 {[%clk 0:15:13]}  Nd7 {[%clk 0:14:37]} 11. e4 {[%clk 0:15:13]}  c6 {[%clk 0:14:37]} 12. exd5 {[%clk 0:15:19]}  cxd5 {[%clk 0:12:43]} 13. Re1 {[%clk 0:15:19]}  Bb4 {[%clk 0:12:49]} 14. Qg4 {[%clk 0:12:33]}  Bxc3 {[%clk 0:12:49]} 15. bxc3 {[%clk 0:12:33]}  g6 {[%clk 0:09:56]} 16. Ba3 {[%clk 0:12:40]}  Rc8 {[%clk 0:09:56]} 17. Rab1 {[%clk 0:12:40]}  Ba8 {[%clk 0:08:54]} 18. Bf1 {[%clk 0:11:25]}  Nb6 {[%clk 0:08:18]} 19. Bb5+ {[%clk 0:09:25]}  Bc6 {[%clk 0:08:18]} 20. Ba6 {[%clk 0:09:25]}  Nc4 {[%clk 0:07:41]} 21. Bb4 {[%clk 0:04:58]}  Rb8 {[%clk 0:06:19]} 22. Bxc4 {[%clk 0:03:50]}  dxc4 {[%clk 0:03:35]} 23. Bd6 {[%clk 0:03:50]}  Rc8 {[%clk 0:03:35]} 24. Qf4 {[%clk 0:03:50]}  h5 {[%clk 0:02:19]} 25. Rb4 {[%clk 0:02:22]}  h4 {[%clk 0:02:19]} 26. g4 {[%clk 0:02:22]}  h3 {[%clk 0:02:19]} 27. Reb1 {[%clk 0:02:22]}  g5 {[%clk 0:01:12]} 28. Qe3 {[%clk 0:01:21]}  Rh4 {[%clk 0:01:12]} 29. f3 {[%clk 0:01:21]}  f5 {[%clk 0:01:12]} 30. Rb8 {[%clk 0:01:21]}  Bd7 {[%clk 0:01:12]} 31. Rxc8 {[%clk 0:01:21]}  Bxc8 {[%clk 0:01:12]} 32. Rb8 {[%clk 0:01:21]}  fxg4 {[%clk 0:01:12]} 33. Qc5 {[%clk 0:01:21]}  Kf7 {[%clk 0:01:12]} 34. Rxc8 {[%clk 0:01:47]}  Qb6 {[%clk 0:00:50]} 35. Qxb6 {[%clk 0:01:47]}  axb6 {[%clk 0:00:50]} 36. Rxc4 {[%clk 0:01:47]} 1-0


[Site "http://www.Chess.com"]

[Event "FIDE World Rapid Chess Championship 2021"]
[White "Sadhwani, Raunak"]
[Black "Halkias, Stelios"]
[WhiteFideId "35093487"]
[BlackFideId "4201809"]
[WhiteElo "2454"]
[BlackElo "2576"]
[Result "1-0"]
[Round "08"]
[TimeControl "900+10"]
[Date "2021.12.27"]
[WhiteClock "0:01:18"]
[BlackClock "0:00:43"]

1. c4 {[%clk 0:15:00]}  Nf6 {[%clk 0:15:00]} 2. Nc3 {[%clk 0:15:00]}  g6 {[%clk 0:15:00]} 3. e4 {[%clk 0:15:00]}  d6 {[%clk 0:15:00]} 4. d4 {[%clk 0:15:00]}  Bg7 {[%clk 0:15:00]} 5. Nf3 {[%clk 0:15:00]}  O-O {[%clk 0:15:00]} 6. Be2 {[%clk 0:15:13]}  e5 {[%clk 0:16:22]} 7. O-O {[%clk 0:15:13]}  exd4 {[%clk 0:16:22]} 8. Nxd4 {[%clk 0:15:13]}  Re8 {[%clk 0:16:22]} 9. f3 {[%clk 0:15:13]}  c6 {[%clk 0:16:22]} 10. Nc2 {[%clk 0:15:13]}  d5 {[%clk 0:16:22]} 11. cxd5 {[%clk 0:15:13]}  cxd5 {[%clk 0:16:22]} 12. exd5 {[%clk 0:15:13]}  Nbd7 {[%clk 0:16:22]} 13. Kh1 {[%clk 0:15:20]}  Nb6 {[%clk 0:13:58]} 14. Ne3 {[%clk 0:15:20]}  h5 {[%clk 0:13:58]} 15. a4 {[%clk 0:15:20]}  h4 {[%clk 0:13:58]} 16. a5 {[%clk 0:13:52]}  Nbd7 {[%clk 0:12:00]} 17. Nc4 {[%clk 0:13:52]}  Nh5 {[%clk 0:12:00]} 18. Ne4 {[%clk 0:13:45]}  Ndf6 {[%clk 0:10:39]} 19. Bg5 {[%clk 0:12:38]}  Qxd5 {[%clk 0:06:07]} 20. Ncd6 {[%clk 0:10:28]}  Qxd1 {[%clk 0:06:08]} 21. Rfxd1 {[%clk 0:08:15]}  Nxe4 {[%clk 0:03:32]} 22. fxe4 {[%clk 0:06:43]}  Re5 {[%clk 0:03:32]} 23. Bxh4 {[%clk 0:06:43]}  Be6 {[%clk 0:03:32]} 24. Be1 {[%clk 0:06:43]}  Nf4 {[%clk 0:03:32]} 25. Bf3 {[%clk 0:06:14]}  g5 {[%clk 0:01:38]} 26. g3 {[%clk 0:06:14]}  Ng6 {[%clk 0:01:38]} 27. Bc3 {[%clk 0:06:14]}  Rc5 {[%clk 0:01:38]} 28. Nxb7 {[%clk 0:06:14]}  Rc7 {[%clk 0:01:38]} 29. e5 {[%clk 0:05:35]}  Nxe5 {[%clk 0:00:00]} 30. Bxe5 {[%clk 0:05:35]}  Bxe5 {[%clk 0:00:00]} 31. Nd8 {[%clk 0:05:35]}  Rac8 {[%clk 0:00:39]} 32. Nxe6 {[%clk 0:03:32]}  fxe6 {[%clk 0:00:39]} 33. Bg4 {[%clk 0:03:32]}  Re8 {[%clk 0:00:39]} 34. Rab1 {[%clk 0:03:32]}  Kg7 {[%clk 0:00:39]} 35. Rd2 {[%clk 0:03:32]}  Ree7 {[%clk 0:00:39]} 36. b4 {[%clk 0:03:32]}  Rc4 {[%clk 0:00:04]} 37. Be2 {[%clk 0:02:29]}  Re4 {[%clk 0:00:04]} 38. Bf3 {[%clk 0:02:29]}  Rd4 {[%clk 0:00:04]} 39. Rxd4 {[%clk 0:02:36]}  Bxd4 {[%clk 0:00:04]} 40. b5 {[%clk 0:02:36]}  e5 {[%clk 0:00:04]} 41. Be4 {[%clk 0:02:36]}  Re6 {[%clk 0:00:04]} 42. Rd1 {[%clk 0:02:36]}  Re7 {[%clk 0:00:04]} 43. Rc1 {[%clk 0:01:38]}  Rf7 {[%clk 0:00:00]} 44. Kg2 {[%clk 0:01:38]}  g4 {[%clk 0:00:00]} 45. Rc2 {[%clk 0:01:38]}  Kh6 {[%clk 0:00:00]} 46. Ra2 {[%clk 0:01:38]}  Kg5 {[%clk 0:00:00]} 47. h4+ {[%clk 0:01:38]}  gxh3+ {[%clk 0:00:00]} 48. Kxh3 {[%clk 0:01:38]}  Rf2 {[%clk 0:00:00]} 49. Ra4 {[%clk 0:01:38]}  Rf7 {[%clk 0:00:00]} 50. Rc4 {[%clk 0:01:38]}  Rf8 {[%clk 0:00:43]} 51. Rc7 {[%clk 0:01:18]}  Rh8+ {[%clk 0:00:43]} 52. Kg2 {[%clk 0:01:18]}  Rf8 {[%clk 0:00:43]} 53. b6 {[%clk 0:01:18]}  axb6 {[%clk 0:00:43]} 54. a6 {[%clk 0:01:18]}  b5 {[%clk 0:00:43]} 55. a7 {[%clk 0:01:18]}  Rf2+ {[%clk 0:00:43]} 56. Kh3 {[%clk 0:01:18]}  Bxa7 {[%clk 0:00:43]} 57. Rxa7 {[%clk 0:01:18]}  Re2 {[%clk 0:00:43]} 58. Bd3 {[%clk 0:01:18]}  Rd2 {[%clk 0:00:43]} 59. Bxb5 {[%clk 0:01:18]}  e4 {[%clk 0:00:43]} 60. Re7 {[%clk 0:01:18]}  Kf5 {[%clk 0:00:43]} 61. Bc6 {[%clk 0:01:18]}  Rd4 {[%clk 0:00:43]} 62. Rxe4 {[%clk 0:01:18]}  Rxe4 {[%clk 0:00:43]} 63. Bxe4+ {[%clk 0:01:18]} 1-0


[Site "http://www.Chess.com"]

[Event "FIDE World Rapid Chess Championship 2021"]
[White "Dziuba, Marcin"]
[Black "Ter-Sahakyan, Samvel"]
[WhiteFideId "1112953"]
[BlackFideId "13302531"]
[WhiteElo "2424"]
[BlackElo "2573"]
[Result "1/2-1/2"]
[Round "08"]
[TimeControl "900+10"]
[Date "2021.12.27"]
[WhiteClock "0:00:00"]
[BlackClock "0:02:09"]

1. d4 {[%clk 0:15:00]}  Nf6 {[%clk 0:15:00]} 2. c4 {[%clk 0:15:00]}  e6 {[%clk 0:15:00]} 3. Nf3 {[%clk 0:15:00]}  d5 {[%clk 0:15:00]} 4. e3 {[%clk 0:14:32]}  b6 {[%clk 0:15:05]} 5. Nbd2 {[%clk 0:14:32]}  Bd6 {[%clk 0:14:56]} 6. b3 {[%clk 0:14:02]}  O-O {[%clk 0:14:56]} 7. Bb2 {[%clk 0:14:02]}  Bb7 {[%clk 0:14:56]} 8. Bd3 {[%clk 0:14:02]}  Nbd7 {[%clk 0:14:56]} 9. O-O {[%clk 0:14:02]}  Ne4 {[%clk 0:14:56]} 10. Qc2 {[%clk 0:14:02]}  f5 {[%clk 0:14:56]} 11. Ne5 {[%clk 0:14:02]}  Bxe5 {[%clk 0:14:49]} 12. dxe5 {[%clk 0:11:40]}  Ndc5 {[%clk 0:14:49]} 13. Nxe4 {[%clk 0:08:02]}  dxe4 {[%clk 0:12:55]} 14. Be2 {[%clk 0:08:02]}  Qg5 {[%clk 0:12:55]} 15. Ba3 {[%clk 0:07:27]}  f4 {[%clk 0:11:12]} 16. exf4 {[%clk 0:07:27]}  Qxf4 {[%clk 0:10:33]} 17. Bxc5 {[%clk 0:05:35]}  bxc5 {[%clk 0:10:33]} 18. Qc3 {[%clk 0:05:35]}  Rad8 {[%clk 0:10:33]} 19. Rad1 {[%clk 0:03:13]}  Rxd1 {[%clk 0:10:43]} 20. Bxd1 {[%clk 0:03:13]}  Rf5 {[%clk 0:10:43]} 21. Be2 {[%clk 0:02:56]}  Bc6 {[%clk 0:08:28]} 22. g3 {[%clk 0:00:13]}  Qg5 {[%clk 0:08:28]} 23. Qe3 {[%clk 0:00:13]}  Qe7 {[%clk 0:06:35]} 24. f4 {[%clk 0:00:00]}  exf3 {[%clk 0:05:26]} 25. Bxf3 {[%clk 0:00:00]}  Qf7 {[%clk 0:05:26]} 26. Bg2 {[%clk 0:00:00]}  Rxf1+ {[%clk 0:05:26]} 27. Bxf1 {[%clk 0:00:00]}  Qf5 {[%clk 0:05:26]} 28. Bd3 {[%clk 0:00:00]}  Qg4 {[%clk 0:02:09]} 29. Be2 {[%clk 0:00:00]}  Qf5 {[%clk 0:02:09]} 30. Bd3 {[%clk 0:00:00]}  Qg4 {[%clk 0:02:09]} 31. Be2 {[%clk 0:00:00]}  Qf5 {[%clk 0:02:09]} 32. Bd3 {[%clk 0:00:00]} 1/2-1/2


[Site "http://www.Chess.com"]